[Event "Festival Groningen-A 2024"]
[Site "Groningen"]
[Date "2024.12.24"]
[Round "4.1"]
[White "Beerdsen, Thomas"]
[Black "Narayanan S L"]
[Result "0-1"]
[ECO "B30"]
[WhiteElo "2502"]
[BlackElo "2647"]
[Annotator "TA"]
[PlyCount "100"]
[EventDate "2024.12.21"]
[EventType "swiss"]
[EventCountry "NED"]
[SourceTitle "playchess.com"]
[Source "ChessBase"]
[SourceQuality "1"]
[TimeControl "40/5400+30:1800+30"]

{[%evp 10,100,13,11,18,17,38,16,37,11,14,16,24,25,25,32,41,38,78,68,74,8,4,-1,0,-18,-22,-69,-53,-66,-79,-77,-83,-79,-68,-74,-68,-62,-63,-70,-57,-63,-39,-87,-22,-71,0,-25,-28,-27,0,0,0,0,0,-53,-63,-62,-46,-49,-49,-49,-52,-63,-32,-37,-30,-22,-25,-295,-302,-229,-222,-463,-391,-687,-642,-29976,-29977,-29985,-29986,-29986,-29987,-29987,-29988,-29997,-29996,-29996,-29984,-29984,-29984,-29984,-29985]} 1. e4 {[%emt 0:00:03]} c5 {[%emt 0:00:05]} 2. Nf3 {[%emt 0:00:06]} Nc6 {[%emt 0:00:05]} 3. Bb5 {[%emt 0:00:13]} e6 {[%emt 0:00:07]} 4. Bxc6 {[%emt 0:00:14]} bxc6 {[%emt 0:00:05]} 5. d3 {[%emt 0:00:26]} Ne7 {[%emt 0:00:08]} 6. h4 {[%emt 0:09:44][%cal Bh2h4,Bh4h5][%mdl 32]} d6 {[%emt 0:00:16]} 7. h5 {[%emt 0:07:32]} e5 {[%emt 0:00:09]} 8. Nh4 {[%emt 0:09:27]} h6 {[%emt 0:00:14]} 9. f4 {[%emt 0:01:51]} exf4 {[%emt 0:00:20]} 10. Bxf4 {[%emt 0:04:42]} g5 {[%emt 0:00:27]} 11. hxg6 {[%emt 0:00:06]} Nxg6 {[%emt 0:00:53]} 12. Nxg6 {[%emt 0:01:05]} fxg6 {[%emt 0:00:07]} 13. Qf3 {[%emt 0:07:27]} Be6 {[%emt 0:37:44] [#]} (13... Bg7 14. Nd2 $16 (14. Qg3 g5 $16)) 14. Nd2 $1 {[%emt 0:11:05]} Qd7 {[%emt 0:01:37]} 15. Nc4 {[%emt 0:07:50]} (15. e5 $16) 15... O-O-O $11 {[%emt 0:01:31]} 16. O-O {[%emt 0:13:42]} g5 {[%emt 0:01:30]} 17. Bd2 {[%emt 0:01:53]} Bg7 {[%emt 0:01:51]} 18. Bc3 {[%emt 0:00:30]} (18. c3 $11) 18... Rhf8 $15 {[%emt 0:04:42]} 19. Qg3 {[%emt 0:01:45]} Bxc3 {[%emt 0:00:25]} 20. bxc3 {[%emt 0:00:58] Black must now prevent Rxf8.} Bxc4 {[%emt 0:00:18]} 21. dxc4 {[%emt 0:00:06]} Qe6 {[%emt 0:00:21][%csl LRc4,LRe4]} 22. Qd3 {[%emt 0:01:34][%cal Oe4e5]} Rxf1+ {[%emt 0:07:05]} 23. Rxf1 $17 {[%emt 0:00:12][%cal Oe4e5][%mdl 4096] Endgame KQR-KQR} Re8 {[%emt 0:00:10]} 24. a4 {[%emt 0:05:22]} a5 {[%emt 0:05:00]} (24... Qxe4 25. Qxd6 Qe6 (25... Qxc2 26. Qxc6+ Kd8 27. Qd5+ Kc8 28. Qa8+ Kc7 29. Rf7+) 26. Qxc5) 25. Re1 $1 {[%emt 0:02:40][%cal Oe4e5]} Qe5 {[%emt 0:02:00]} 26. Rf1 {[%emt 0:01:26]} (26. Qf3 $15) 26... Re6 {[%emt 0:10:10]} (26... Qxe4 $6 27. Qxd6 Qe6 (27... Qxc2 28. Qxc6+ Kd8 29. Qd5+ Kc8 30. Qa8+ Kc7 31. Rf7+) 28. Qxc5 Qe3+ 29. Qxe3 Rxe3 30. Rf6 $11) (26... Kb7 $17) 27. Qf3 $1 $11 {[%emt 0:04:01] [#]} Re8 {[%emt 0:12:44] Black is more active.} (27... Qxe4 28. Qf8+ Re8 29. Qxd6 $15) ({Better is} 27... Qg7 $1 $17) 28. Qf7 {[%emt 0:02:01]} Qe7 {[%emt 0:00:47]} 29. Qg6 {[%emt 0:01:16]} Rf8 {[%emt 0:03:09]} (29... h5 {looks sharper.} 30. Rf3 h4 31. Rf1 Qxe4 32. Qxd6 Qe6) 30. Qxh6 {[%emt 0:02:02]} Rxf1+ {[%emt 0:00:11]} 31. Kxf1 {[%emt 0:00:02]} Qxe4 {[%emt 0:00:18]} 32. Qxd6 {[%emt 0:00:44]} (32. Qh3+ $11 Kb7 33. Qd3 (33. Qd7+ Kb6 $11) 33... Qf4+ 34. Ke1) 32... Qxc4+ {[%emt 0:00:11] KQ-KQ} 33. Qd3 $1 {[%emt 0:01:18]} Qxa4 {[%emt 0:00:27]} 34. Qa6+ {[%emt 0:00:51]} Kd8 $1 {[%emt 0:01:46]} 35. Qb6+ $1 {[%emt 0:01:35]} Ke8 $1 {[%emt 0:00:34]} 36. Qb8+ {[%emt 0:00:05]} Kf7 $1 {[%emt 0:00:16] ( -> ...Qf4+)} 37. Qc7+ {[%emt 0:01:00]} Kg6 {[%emt 0:00:08]} 38. Qd6+ {[%emt 0:01:15]} Kh5 {[%emt 0:00:14]} 39. Kg1 $2 {[%emt 0:01:17][%mdl 8192]} (39. Qd3 $1 $11 {and White is okay.}) 39... Qa1+ $19 {[%emt 0:00:51]} ({Less strong is} 39... Qxc2 40. Qh2+ Kg4 41. Qh3+ Kf4 42. Qh2+ Ke3 43. Qe5+ Kd3 44. Qf5+ Kxc3 (44... Kd2 45. Qxg5+ Kxc3 46. Qxc5+ Kb3 47. Qxa5 $11) 45. Qxc5+ Kb3 46. Qxa5 $17) 40. Kh2 {[%emt 0:00:06]} Qxc3 {[%emt 0:00:29] ...Qe3 is the strong threat.} 41. Qxc6 $2 {[%emt 0:06:19]} (41. Qe6) 41... Qe5+ {[%emt 0:00:38]} (41... Qxc2 42. Qe8+ Kg4 43. Qd7+ Kf4 44. Qc7+ Kg4 45. Qd7+ Kh5 46. Qh3+ Kg6 47. Qe6+ Kg7 48. Qd7+ Kf6 49. Qd6+ Kg7 50. Qd7+ Kg8 51. Qd8+ Kf7 52. Qd7+ Kf6 53. Qd8+ Kf5 54. Qd5+ Kf4 55. Qf3+ Ke5 56. Qe3+ Kd5 57. Qxg5+ Kc4 58. Qg4+ Kb3 59. Qf3+ Kb2 60. Qc6 $19) 42. Kh1 $2 {[%emt 0:00:40]} (42. Kg1 g4 43. Qb7) 42... g4 {[%emt 0:00:24] ( -> ...g3)} 43. c4 {[%emt 0:02:04] [#]} a4 $1 {[%emt 0:02:05][%mdl 512]} 44. Qa8 {[%emt 0:03:17]} (44. Kg1 a3) 44... g3 {[%emt 0:03:45][%cal Re5e1]} 45. Qf3+ {[%emt 0:00:17]} Kh4 {[%emt 0:00:13]} 46. Qd1 {[%emt 0:00:29]} Qh8 {[%emt 0:01:02]} 47. Qxa4 {[%emt 0:01:28]} Kg4+ {[%emt 0:00:15]} 48. Kg1 {[%emt 0:00:04]} Qh2+ {[%emt 0:00:06]} 49. Kf1 {[%emt 0:00:03]} Qh1+ {[%emt 0:00:05]} 50. Ke2 {[%emt 0:00:04]} Qxg2+ {[%emt 0:00:05]} 0-1

[Event "Festival Groningen-A 2024"]
[Site "Groningen"]
[Date "2024.12.24"]
[Round "4.2"]
[White "Kazakouski, Valery"]
[Black "Albers, Sasa"]
[Result "1/2-1/2"]
[ECO "D39"]
[WhiteElo "2567"]
[BlackElo "2268"]
[Annotator "TA"]
[PlyCount "93"]
[EventDate "2024.12.21"]
[EventType "swiss"]
[EventCountry "NED"]
[SourceTitle "playchess.com"]
[Source "ChessBase"]
[SourceQuality "1"]
[TimeControl "40/5400+30:1800+30"]

{[%evp 17,93,25,45,13,1,9,0,0,7,6,37,28,34,34,48,54,35,0,3,0,0,0,0,-92,0,0,16,21,25,24,34,31,24,0,0,-7,0,-18,0,0,0,-8,-8,-8,0,0,-7,-16,-14,-22,-20,-18,0,0,0,0,0,0,0,0,0,0,0,0,0,0,0,0,0,0,0,0,0,0,0,0,0,0]} 1. d4 {[%emt 0:00:04]} Nf6 {[%emt 0:00:03]} 2. c4 {[%emt 0:00:09]} e6 {[%emt 0:00:04]} 3. Nf3 {[%emt 0:00:07]} d5 {[%emt 0:00:05]} 4. Nc3 {[%emt 0:00:07]} Bb4 {[%emt 0:00:16]} 5. Bg5 {[%emt 0:01:17]} dxc4 {[%emt 0:00:30]} 6. e4 {[%emt 0:00:14][%cal Be2e4,Be4e5,Be5f6,Bf6g7][%mdl 32]} c5 {[%emt 0:00:11]} 7. e5 {[%emt 0:00:36]} h6 {[%emt 0:04:18]} 8. exf6 {[%emt 0:02:24]} hxg5 {[%emt 0:00:11]} 9. fxg7 {[%emt 0:00:08]} Rg8 {[%emt 0:00:09] ...g4 would now be deadly.} 10. a3 {[%emt 0:05:44]} (10. Bxc4 g4 11. Nd2 cxd4 $11) 10... Bxc3+ {[%emt 0:07:56]} 11. bxc3 {[%emt 0:00:09]} Nc6 {[%emt 0:11:04]} 12. dxc5 {[%emt 0:08:14]} (12. Bxc4 g4 13. Ne5 Nxe5 14. dxe5 Qxd1+ 15. Rxd1 Rxg7 $14) 12... Qa5 {[%emt 0:09:34]} 13. Nd2 {[%emt 0:10:49]} Qxc5 {[%emt 0:11:20]} 14. Bxc4 {[%emt 0:04:04]} (14. Ne4 Qe5 15. Qe2 Ke7 $15) 14... Qe5+ {[%emt 0:04:53]} 15. Be2 $1 {[%emt 0:00:46]} Rxg7 {[%emt 0:09:25][%cal Oc8d7]} 16. O-O {[%emt 0:02:27]} Bd7 {[%emt 0:01:29][%cal Oc6a5]} 17. Rb1 {[%emt 0:03:24]} Na5 $1 {[%emt 0:03:49]} 18. Rb4 {[%emt 0:13:02]} O-O-O $1 {[%emt 0:02:10][%cal Od7c6]} 19. Nf3 {[%emt 0:03:34]} Qc5 {[%emt 0:03:59][%cal Od7c6]} 20. Rd4 {[%emt 0:05:58]} (20. Qd3 $11 {keeps the balance.}) 20... Rgg8 {[%emt 0:00:06]} ({Of course not} 20... Qxa3 21. Qd3 $11) (20... Qxc3 21. Qb1 Qxa3 22. Rd3 $18 (22. Ne5 f6 $18)) ({Better is} 20... g4 $17 21. Nd2 Qxa3 (21... Qxc3 22. Ne4 $18)) 21. Qd3 $11 {[%emt 0:05:14]} Bc6 {[%emt 0:02:01]} 22. Rd1 {[%emt 0:01:27]} Rxd4 {[%emt 0:01:45]} 23. cxd4 {[%emt 0:02:10]} Qf5 $1 {[%emt 0:04:08]} 24. Qxf5 {[%emt 0:05:55]} exf5 {[%emt 0:00:05]} 25. Rc1 {[%emt 0:02:17] And now d5 would win.} Kb8 {[%emt 0:03:36]} 26. h4 {[%emt 0:10:14]} gxh4 {[%emt 0:03:58]} 27. Nxh4 {[%emt 0:02:18]} Be4 {[%emt 0:08:13]} 28. f3 {[%emt 0:06:31]} Nb3 {[%emt 0:00:39][%csl LRc1,LRd4]} 29. Re1 {[%emt 0:00:45]} Bc2 {[%emt 0:00:49]} 30. Bc4 {[%emt 0:00:23]} Nxd4 {[%emt 0:00:19]} 31. Bxf7 {[%emt 0:00:10]} Rg7 {[%emt 0:03:22]} 32. Bd5 {[%emt 0:01:04]} Kc7 {[%emt 0:01:23]} 33. Re8 {[%emt 0:01:46]} f4 {[%emt 0:01:23]} 34. Be4 {[%emt 0:01:12] Against Rh7} Kd7 {[%emt 0:00:01]} 35. Re5 {[%emt 0:00:14]} Bxe4 {[%emt 0:00:32]} 36. Rxe4 {[%emt 0:00:07][%mdl 4096] Endgame KRN-KRN} Ne6 {[%emt 0:00:29]} 37. Nf5 {[%emt 0:01:47]} Rf7 {[%emt 0:00:32]} 38. Re5 {[%emt 0:01:03]} Rf8 {[%emt 0:02:21]} 39. Kf2 {[%emt 0:00:35]} b6 {[%emt 0:01:45]} 40. Rd5+ {[%emt 0:01:18]} Kc7 {[%emt 0:00:50]} 41. Nd4 {[%emt 0:04:10]} Nxd4 {[%emt 0:00:45]} 42. Rxd4 {[%emt 0:00:08] KR-KR} Kc6 {[%emt 0:00:59]} 43. Ke2 {[%emt 0:00:11]} Rg8 {[%emt 0:04:58]} 44. Kf2 {[%emt 0:00:11]} Rf8 {[%emt 0:00:05]} 45. Ke2 {[%emt 0:00:04]} Rg8 {[%emt 0:00:04]} 46. Kf2 {[%emt 0:00:05]} Rf8 {[%emt 0:00:04]} 47. Ke2 {[%emt 0:00:06]} 1/2-1/2

[Event "Festival Groningen-A 2024"]
[Site "Groningen"]
[Date "2024.12.24"]
[Round "4.3"]
[White "Slagboom, Leandro"]
[Black "Schoppen, Casper"]
[Result "0-1"]
[ECO "E92"]
[WhiteElo "2370"]
[BlackElo "2539"]
[Annotator "TA"]
[PlyCount "112"]
[EventDate "2024.12.21"]
[EventType "swiss"]
[EventCountry "NED"]
[SourceTitle "playchess.com"]
[Source "ChessBase"]
[SourceQuality "1"]
[TimeControl "40/5400+30:1800+30"]

{[%evp 42,112,51,42,57,43,65,62,86,71,55,-35,-19,-62,0,0,0,0,45,45,52,0,135,112,108,81,122,101,83,100,91,54,64,70,173,174,162,9,15,-83,-75,-68,-68,-83,-83,-128,-107,-129,-93,-271,-179,-288,-266,-548,-470,-500,-476,-917,-883,-857,-894,-1621,-1381,-1973,-1968,-1897,-1919,-2093,-1883,-29965,-29966,-5498,-5431]} 1. d4 {[%emt 0:00:03]} Nf6 {[%emt 0:00:10]} 2. c4 {[%emt 0:00:06]} g6 {[%emt 0:00:42]} 3. Nc3 {[%emt 0:00:05]} Bg7 {[%emt 0:00:05]} 4. e4 {[%emt 0:00:06]} d6 {[%emt 0:00:03]} 5. Be2 {[%emt 0:00:05]} O-O {[%emt 0:00:31]} 6. h3 {[%emt 0:00:05]} e5 {[%emt 0:01:30]} 7. d5 {[%emt 0:00:05]} a5 {[%emt 0:06:58]} 8. Be3 {[%emt 0:00:50]} Na6 {[%emt 0:00:31]} 9. Nf3 {[%emt 0:00:46]} Nh5 {[%emt 0:01:50]} 10. Nd2 {[%emt 0:00:13] is currently scoring better than 10.g3. E92: King's Indian: Classical: 6 Be2 e5: 7 dxe5, 7 Be3 and Petrosian System without 7...Nbd7.} Nf4 {[%emt 0:00:16]} 11. Bf1 {[%emt 0:00:07]} a4 {[%emt 0:00:36]} 12. a3 {[%emt 0:01:51]} f5 {[%emt 0:01:21]} 13. g3 {[%emt 0:00:13]} Nd3+ {[%emt 0:01:28]} 14. Bxd3 {[%emt 0:00:07]} f4 {[%emt 0:00:03]} 15. Qe2 {[%emt 0:00:20]} fxe3 {[%emt 0:00:28]} 16. Qxe3 {[%emt 0:00:06]} Nc5 {[%emt 0:00:55]} 17. Bc2 $146 {[%emt 0:02:26]} ({Predecessor:} 17. Rh2 Rf7 18. Bc2 Qf8 19. O-O-O Bd7 20. g4 h6 21. Qe2 Bf6 22. h4 {½-½ Nikolaev,D (2330)-Saglione,E (2421) Champion's League 2021/C10 email}) 17... Qf6 {[%emt 0:01:14]} 18. Rh2 {[%emt 0:00:16]} h5 {[%emt 0:02:14]} 19. O-O-O {[%emt 0:02:11]} Kh7 {[%emt 0:00:20]} 20. Kb1 {[%emt 0:01:51]} Bh6 {[%emt 0:00:09]} 21. Qe2 {[%emt 0:00:57]} Bd7 {[%emt 0:00:43]} 22. Rg1 {[%emt 0:14:46]} Rae8 {[%emt 0:11:45]} 23. Ka2 {[%emt 0:07:15]} h4 {[%emt 0:11:23]} 24. Bd1 {[%emt 0:03:02]} (24. gxh4 {with more complications.} Qxh4 25. Rhg2 Re7 26. f3) 24... hxg3 {[%emt 0:05:19]} 25. fxg3 {[%emt 0:00:25]} Qg5 {[%emt 0:01:52]} 26. h4 {[%emt 0:11:48]} (26. Nf1 $14) 26... Qe3 $15 {[%emt 0:00:49]} 27. Qg2 {[%emt 0:02:01]} (27. Qxe3 {simplifies} Bxe3 28. Rgg2 Rf7 29. Kb1) 27... Qd4 {[%emt 0:12:43]} ({Black should play} 27... Nd3 $15 28. Nf3 Kg8) 28. h5 $11 {[%emt 0:20:29]} g5 {[%emt 0:01:23]} 29. g4 $1 {[%emt 0:02:07]} Nd3 {[%emt 0:02:16]} 30. Qg3 {[%emt 0:11:44]} (30. Bxa4 $2 Bxa4 31. Nxa4 b5 $19) 30... Ra8 {[%emt 0:22:04]} 31. Be2 {[%emt 0:09:56]} (31. Ka1 $14) 31... Nf4 {[%emt 0:05:05]} (31... Nxb2 $1 $11 {remains equal.} 32. Rb1 Qxd2 33. Rxb2 Qd4) 32. Bf1 {[%emt 0:00:30]} Kg8 {[%emt 0:01:55]} 33. Nf3 {[%emt 0:03:26]} Qb6 {[%emt 0:02:40]} 34. Qf2 {[%emt 0:01:57]} Qxf2 {[%emt 0:03:21]} 35. Rxf2 {[%emt 0:00:04]} Rf6 {[%emt 0:00:55]} 36. Nd1 {[%emt 0:02:22]} Raf8 {[%emt 0:00:40]} 37. Rg3 $1 {[%emt 0:01:05]} Nxh5 {[%emt 0:01:50]} (37... Kh7 $1 $14) 38. gxh5 $18 {[%emt 0:00:13]} g4 {[%emt 0:00:05] [#]} 39. Bh3 $2 {[%emt 0:01:32]} (39. Be2 $1 $18 {And now Rfg2 would win.} Kh7 40. Nxe5 Rxf2 41. Nxd7 (41. Nxf2 Rxf2 42. Nxd7 Rxe2 $11) 41... Rxe2 42. Nxf8+ Bxf8 43. Nc3 (43. Rxg4 Bg7 $16)) 39... Rxf3 $11 {[%emt 0:00:49]} 40. Rfxf3 {[%emt 0:01:51]} (40. Rgxf3 $11 Rxf3 41. Bxg4 Rxf2 (41... Bxg4 42. Rg2 $16) 42. Nxf2) 40... Rxf3 $17 {[%emt 0:00:06]} 41. Rxf3 {[%emt 0:30:51]} gxh3 {[%emt 0:30:21]} 42. Nf2 {[%emt 0:00:00]} h2 {[%emt 0:00:00]} 43. b3 {[%emt 0:00:00]} axb3+ {[%emt 0:00:00]} 44. Kxb3 {[%emt 0:00:00]} Bf4 {[%emt 0:00:00]} 45. Nh1 $2 {[%emt 0:00:00]} (45. Rc3 $17) 45... Kh7 {[%emt 0:00:00]} 46. Kc2 {[%emt 0:00:00]} (46. Rc3 $142) 46... Bg4 $19 {[%emt 0:00:00]} 47. Rf2 $2 {[%emt 0:00:00] [#]} (47. Rc3) 47... Kh6 $1 $19 {[%emt 0:00:00]} (47... Bxh5 48. a4 $15) 48. Kd3 {[%emt 0:00:51]} Kxh5 {[%emt 0:00:00]} 49. Rf1 {[%emt 0:02:06]} (49. a4 $142 b6 50. Kc3) 49... Kh4 $19 {[%emt 0:00:00]} 50. Rf2 {[%emt 0:00:17]} Kh3 {[%emt 0:00:00]} 51. Rb2 {[%emt 0:00:30]} Bf3 {[%emt 0:00:00]} 52. Nf2+ {[%emt 0:00:17]} Kg3 {[%emt 0:00:00]} 53. Rc2 {[%emt 0:00:41]} b6 {[%emt 0:00:00]} 54. a4 {[%emt 0:00:21]} Bg5 {[%emt 0:00:00]} 55. Rb2 {[%emt 0:00:36]} Bc1 {[%emt 0:00:00]} 56. Ra2 {[%emt 0:00:42]} Ba3 {[%emt 0:09:02]} ({Stronger than} 56... h1=Q 57. Nxh1+ Kf4 (57... Bxh1 58. Ra1 $16) 58. Nf2 $14) 0-1

[Event "Festival Groningen-A 2024"]
[Site "Groningen"]
[Date "2024.12.24"]
[Round "4.4"]
[White "Pham, Khoi"]
[Black "De Winter, Arthur"]
[Result "1-0"]
[ECO "E04"]
[WhiteElo "2285"]
[BlackElo "2446"]
[Annotator "TA"]
[PlyCount "73"]
[EventDate "2024.12.21"]
[EventType "swiss"]
[EventCountry "NED"]
[SourceTitle "playchess.com"]
[Source "ChessBase"]
[SourceQuality "1"]
[TimeControl "40/5400+30:1800+30"]

{[%evp 12,73,26,34,33,9,19,11,4,5,12,8,15,16,34,39,116,71,131,131,108,104,147,138,152,116,148,148,156,141,158,158,168,165,540,527,576,575,572,741,756,756,752,735,741,719,736,716,692,697,690,667,679,679,679,651,939,932,5165,5066,6170,6170,2459,2434]} 1. d4 {[%emt 0:00:03]} d5 {[%emt 0:00:02]} 2. c4 {[%emt 0:00:05]} e6 {[%emt 0:00:05]} 3. Nf3 {[%emt 0:00:08]} Nf6 {[%emt 0:00:06]} 4. g3 {[%emt 0:00:04]} dxc4 {[%emt 0:00:11]} 5. Bg2 {[%emt 0:00:10]} Nbd7 {[%emt 0:00:23]} 6. O-O {[%emt 0:04:57]} c6 {[%emt 0:00:02]} 7. a4 {[%emt 0:02:21]} b6 {[%emt 0:00:02]} 8. Nbd2 {[%emt 0:13:53]} Ba6 {[%emt 0:00:07]} 9. Ne5 {[%emt 0:02:48]} Nxe5 {[%emt 0:01:29]} 10. dxe5 {[%emt 0:00:10]} Nd5 {[%emt 0:12:33][%cal Bf6d5,Bd5b4,Bb4c2][%mdl 32]} 11. Qc2 {[%emt 0:01:04][%mdl 1024] White has compensation.} Nb4 {[%emt 0:06:58]} 12. Qe4 {[%emt 0:01:26]} Bc5 {[%emt 0:04:59]} 13. Qg4 {[%emt 0:05:13]} Qc7 {[%emt 0:01:53]} (13... O-O $14) 14. Ne4 {[%emt 0:09:22]} O-O-O {[%emt 0:01:28]} ({Black should play} 14... Qxe5 15. Nxc5 h5 16. Nxa6 hxg4 17. Nxb4 c5) 15. Nxc5 {[%emt 0:01:42]} (15. Qxg7 Rhg8 16. Qh6 (16. Qxh7 Rh8 $16) 16... Nc2 $16 (16... Qxe5 17. Qxh7 Rg7 18. Bf4 $16)) 15... bxc5 {[%emt 0:00:34]} 16. Qxg7 {[%emt 0:03:11]} Nc2 {[%emt 0:06:33][%cal Oh8g8] [#] Prevents Be3} 17. Bg5 $1 {[%emt 0:11:40]} Rdg8 {[%emt 0:08:29] [#]} (17... Rde8 18. Rad1) 18. Qf6 $1 {[%emt 0:00:12]} Nxa1 {[%emt 0:01:09]} 19. Rxa1 {[%emt 0:00:02]} Qb7 {[%emt 0:05:47]} 20. Be4 {[%emt 0:04:36]} Rd8 {[%emt 0:03:03]} 21. Be3 {[%emt 0:01:36] White is much more active.} Rhe8 {[%emt 0:08:26]} 22. Bxc5 {[%emt 0:03:03] and Bd6 should not be overlooked A strong pair of Bishops.} (22. Bxh7 Qxb2 23. Rb1 Qxe2 24. Qxf7 c3 $11) 22... Qxb2 $2 {[%emt 0:01:31]} (22... Rd2) 23. Rb1 $18 {[%emt 0:02:10]} Qxe2 {[%emt 0:02:13] [#]} 24. Bd6 $1 {[%emt 0:02:47]} Rxd6 {[%emt 0:00:17]} 25. exd6 {[%emt 0:00:03][%cal Be5d6,Bd6d7][%mdl 32]} Qxe4 {[%emt 0:00:05]} 26. Rd1 $1 {[%emt 0:01:44]} Rd8 {[%emt 0:01:35]} 27. Qxf7 {[%emt 0:03:09]} Rd7 {[%emt 0:00:48]} 28. Qf8+ {[%emt 0:04:08]} Rd8 {[%emt 0:04:31] [#]} 29. d7+ $1 {[%emt 0:01:59]} Kc7 {[%emt 0:00:03] [#]} 30. Qd6+ $1 {[%emt 0:00:45]} Kb6 {[%emt 0:00:58] ...c3 is the strong threat.} 31. Qb4+ {[%emt 0:01:29]} Bb5 {[%emt 0:00:16]} 32. axb5 {[%emt 0:00:58]} cxb5 {[%emt 0:00:18]} 33. Rd6+ {[%emt 0:02:28]} Kb7 {[%emt 0:00:34]} 34. Qxb5+ {[%emt 0:00:08]} Ka8 {[%emt 0:01:42]} 35. Rc6 {[%emt 0:02:43]} Qe1+ {[%emt 0:00:37]} 36. Kg2 {[%emt 0:00:04] Intending Rc8+ and mate.} Qe4+ {[%emt 0:00:04]} 37. Kh3 {[%emt 0:00:35]} 1-0

[Event "Festival Groningen-A 2024"]
[Site "Groningen"]
[Date "2024.12.24"]
[Round "4.5"]
[White "Elgersma, Onno"]
[Black "Palchuk, Andrii"]
[Result "1-0"]
[ECO "B30"]
[WhiteElo "2322"]
[BlackElo "2372"]
[Annotator "TA"]
[PlyCount "45"]
[EventDate "2024.12.21"]
[EventType "swiss"]
[EventCountry "NED"]
[SourceTitle "playchess.com"]
[Source "ChessBase"]
[SourceQuality "1"]
[TimeControl "40/5400+30:1800+30"]

{[%evp 11,45,34,28,20,25,24,28,22,40,27,56,43,99,78,81,87,77,69,170,182,177,176,210,188,203,203,175,167,172,172,172,145,662,650,723,717]} 1. e4 {[%emt 0:00:03]} c5 {[%emt 0:12:54]} 2. Nf3 {[%emt 0:00:15]} Nc6 {[%emt 0:00:17]} 3. Bb5 {[%emt 0:00:18]} Nf6 {[%emt 0:00:33]} 4. Nc3 {[%emt 0:00:40]} Qc7 {[%emt 0:00:09]} 5. O-O {[%emt 0:00:26]} Nd4 {[%emt 0:00:10]} 6. Re1 {[%emt 0:00:16]} a6 {[%emt 0:02:43]} 7. Bc4 {[%emt 0:05:21]} d6 {[%emt 0:05:38]} 8. Nd5 {[%emt 0:09:51]} Nxd5 {[%emt 0:03:35]} 9. exd5 {[%emt 0:04:36]} b5 {[%emt 0:06:46]} 10. Nxd4 {[%emt 0:07:06]} cxd4 {[%emt 0:06:39]} 11. Bb3 {[%emt 0:01:34]} d3 {[%emt 0:03:53]} 12. Qf3 {[%emt 0:12:33]} (12. cxd3 g6 $11) 12... dxc2 {[%emt 0:01:52]} 13. d3 {[%emt 0:02:38][%cal Bd2d3,Bd3d4][%mdl 32]} Bb7 {[%emt 0:08:53]} 14. Bf4 {[%emt 0:12:00] White is more active.} e5 {[%emt 0:04:38]} (14... Qd7 $14) 15. d4 $18 {[%emt 0:01:03]} f6 {[%emt 0:00:47]} 16. Rac1 $1 {[%emt 0:03:46]} Be7 {[%emt 0:08:27]} 17. Bxc2 $1 {[%emt 0:01:11]} (17. dxe5 dxe5 18. Bxc2 (18. Rxc2 Qd7 $16) 18... Qd6) 17... Qd7 {[%emt 0:00:53] [#]} 18. Qh5+ $1 {[%emt 0:03:43]} Kf8 {[%emt 0:02:04]} 19. Bg3 {[%emt 0:10:43]} Bxd5 {[%emt 0:03:46][%cal Od7b7]} 20. dxe5 {[%emt 0:00:05]} (20. Bxh7 Rd8 21. dxe5 dxe5 $11) 20... dxe5 {[%emt 0:00:26][%cal Oa8d8]} 21. Rcd1 {[%emt 0:00:53][%cal Od1d5]} (21. Bxh7 Qb7 $11) 21... Qc6 $2 {[%emt 0:00:41][%mdl 8192] [#]} (21... Bb4 $16) 22. Rxd5 $1 {[%emt 0:03:59][%mdl 512] And now Bb3 would win.} Qxd5 {[%emt 0:00:07]} (22... Qxc2 23. Rdxe5) 23. Bb3 {[%emt 0:00:35]} (23. Bxh7 $2 {perishes.} Qd2 (23... Qxa2 $2 24. Qe2 $19) (23... Qd3 24. Qxe5 fxe5 25. Bxd3 $17) 24. Rb1 Rc8 $19) 1-0